bitfinex/quotes_ETHUSD_20241223
["timestamp","ask_amount","ask_price","bid_price","bid_amount"]
[1734980233060,0.7645,3307.7,3306.2,3.02455]
[1734980233259,0.7645,3307.7,3306.3,0.04128323]
[1734980233486,0.7645,3307.7,3305.9,0.7655]
[1734980233690,0.7645,3307.7,3306.7,3.02407]
[1734980233903,0.7645,3307.7,3306.8,0.04073709]
[1734980234912,0.7645,3308.4,3306.9,0.812]
[1734980235089,0.19994407,3308.3,3307.0,3.0640684]
[1734980235295,0.7645,3308.4,3307.0,3.0640684]
[1734980235715,0.7645,3308.4,3307.0,0.0402084]
[1734980236008,0.7645,3308.4,3307.2,3.02367]
[1734980237180,0.7645,3308.4,3307.4,3.02351]
[1734980238777,0.7645,3308.4,3307.5,3.02335]
[1734980238981,0.7645,3308.4,3307.6,3.302335]
[1734980239860,1.68028607,3308.7,3307.6,3.302335]
[1734980240065,1.68028607,3308.7,3308.6,3.02242]
[1734980240305,1.55118611,3309.4,3309.0,3.02197]
[1734980240509,1.55118611,3309.4,3309.1,3.77906]
[1734980240696,1.23494067,3309.4,3309.1,0.7571]
[1734980241077,1.23494067,3309.4,3309.0,3.02204]
[1734980241293,1.23494067,3309.4,3309.2,3.02183]
[1734980241513,1.23494067,3310.9,3309.0,0.33242033]
[1734980241808,0.7515,3310.8,3309.8,3.0]
[1734980242808,0.7515,3310.8,3309.6,6.02151]
[1734980243105,1.23494067,3310.9,3310.1,3.02102]
[1734980243268,1.23494067,3310.9,3310.0,3.0]
[1734980243269,2.46970915,3311.4,3310.3,3.02083]
[1734980243468,2.46970915,3311.4,3310.4,3.02078]
[1734980243881,2.46970915,3311.4,3310.2,3.02094]
[1734980244224,2.46970915,3311.4,3310.5,0.7972]
[1734980244520,1.23494067,3311.6,3310.7,3.0]
[1734980244826,0.1685579,3311.7,3310.8,0.602059]
[1734980245001,3.01997,3311.3,3310.1,0.602102]
[1734980245166,0.7645,3311.2,3309.7,3.756]
[1734980245366,0.7645,3311.2,3308.8,3.02215]
[1734980245367,0.1685579,3311.7,3310.3,0.756]
[1734980245627,0.1685579,3311.7,3310.4,3.02076]
[1734980246111,0.1685579,3311.7,3310.5,3.02063]
[1734980246570,0.1685579,3311.7,3310.6,3.0]
[1734980246932,0.1685579,3311.7,3310.7,0.602063]
[1734980247513,0.1685579,3311.7,3310.8,3.02037]
[1734980247712,0.1685579,3311.7,3310.9,3.0203]
[1734980247873,0.1685579,3311.7,3311.1,0.55]
[1734980248080,0.1685579,3311.7,3311.6,6.01968]
[1734980248273,0.1685579,3311.7,3311.6,6.621648]
[1734980249636,0.1685579,3311.7,3311.6,3.601968]
[1734980249796,0.1685579,3311.7,3311.6,4.171648]
[1734980249999,0.1685579,3311.7,3311.6,7.171648]
[1734980250196,0.1685579,3311.7,3311.6,6.621648]
[1734980250849,0.7645,3313.8,3312.5,3.01882]
[1734980251012,0.7645,3313.8,3312.3,3.0]
[1734980251196,0.7645,3313.8,3311.7,3.6817148]
[1734980251399,0.01361167,3314.0,3311.7,0.6621648]
[1734980251400,3.01833,3313.1,3311.7,0.6621648]
[1734980251599,0.7645,3313.0,3311.7,0.6621648]
[1734980251841,1.142783,3313.0,3311.7,0.6621648]
[1734980252147,0.7645,3312.2,3310.6,3.02055]
[1734980252349,0.7645,3312.2,3310.5,0.7668]
[1734980252644,0.7645,3312.2,3311.2,3.02004]
[1734980252860,0.7645,3312.2,3310.8,3.05055389]
[1734980253151,6.78309,3312.8,3311.2,0.7556]
[1734980253749,0.7645,3312.8,3311.2,0.7556]
[1734980254831,0.7645,3312.8,3311.4,3.01985]
[1734980255045,3.7645,3312.8,3311.2,3.7756]
[1734980255514,0.7558,3312.5,3311.1,3.0]
[1734980255740,0.7558,3312.5,3311.2,0.602022]
[1734980255916,3.01932,3312.0,3309.8,0.7763]
[1734980256100,0.7558,3311.4,3309.8,0.7763]
[1734980256304,0.7558,3311.4,3310.0,3.02113]
[1734980256616,0.7558,3311.4,3310.2,3.0209]
[1734980256797,0.7558,3311.4,3310.1,0.302113]
[1734980256999,3.01996,3311.3,3309.8,0.7763]
[1734980257228,0.7558,3311.4,3309.8,0.7763]
[1734980257429,0.7558,3311.4,3310.4,3.02077]
[1734980257835,0.7558,3311.4,3310.2,3.02093]
[1734980258046,0.7558,3311.4,3310.3,3.0]
[1734980258348,0.7558,3311.4,3310.4,0.3]
[1734980258553,0.7558,3311.4,3309.8,0.7763]
[1734980258845,0.7645,3311.0,3309.8,3.0213]
[1734980259248,0.7645,3311.0,3309.5,3.02158]
[1734980259451,0.7645,3311.0,3309.3,0.8221]
[1734980259739,0.7645,3311.0,3309.4,3.02168]
[1734980259740,3.78473,3311.0,3309.4,3.02168]
[1734980259941,3.78473,3311.0,3309.5,0.384378]
[1734980260154,3.78473,3311.0,3309.6,3.0]
[1734980260300,3.78473,3311.0,3309.5,0.384378]
[1734980260301,0.7645,3311.0,3309.5,0.384378]
[1734980260619,3.02079,3310.4,3308.8,3.02216]
[1734980261554,0.7645,3310.5,3308.6,3.02242]
[1734980261762,0.7645,3310.5,3309.3,3.7515]
[1734980262081,0.7645,3311.1,3310.3,3.0]
[1734980262248,0.7645,3311.1,3309.4,0.55]
[1734980262444,0.7645,3311.1,3309.3,0.7515]
[1734980262665,0.7645,3311.1,3309.3,3.7515]
[1734980262864,0.7645,3311.1,3310.3,3.02079]
[1734980263065,0.7645,3311.7,3310.8,3.02037]
[1734980263265,0.7645,3311.7,3310.9,3.02031]
[1734980263462,0.7645,3312.1,3310.7,3.0]
[1734980263777,0.7645,3312.1,3311.1,3.02013]
[1734980264335,0.7645,3312.1,3310.9,3.57032]
[1734980264545,0.7645,3312.1,3311.3,3.01989]
[1734980264748,0.7645,3312.1,3311.1,0.55]
[1734980265091,0.7645,3312.1,3311.4,3.01982]
[1734980265246,0.7645,3312.1,3311.0,3.0]
[1734980265247,0.7645,3312.1,3311.5,0.301982]
[1734980265974,0.7645,3312.1,3311.5,3.321752]
[1734980268093,0.7645,3312.7,3311.6,3.01962]
[1734980268245,0.7645,3312.7,3311.5,1.061082]
[1734980268443,0.7645,3312.7,3311.8,3.0195]
[1734980268663,0.7645,3312.7,3311.5,0.7591]
[1734980268889,0.7645,3312.7,3311.9,3.01933]
[1734980269255,0.7645,3312.7,3311.8,3.0195]
[1734980269572,0.7645,3312.7,3311.5,0.7591]
[1734980269775,0.7645,3312.7,3310.6,0.7606]
[1734980270077,3.78346,3312.4,3311.0,3.0]
[1734980270276,0.7645,3311.7,3310.0,0.8183]
[1734980270613,3.78415,3311.7,3310.2,3.02096]
[1734980272205,0.7645,3311.7,3310.0,3.8183]
[1734980272362,0.7645,3311.7,3310.2,3.02093]
[1734980272566,0.7645,3311.5,3309.6,0.7929]
[1734980272874,0.7645,3310.9,3309.4,0.677331]
[1734980273076,3.02107,3310.1,3308.7,0.7929]
[1734980273276,3.78566,3310.0,3308.3,0.7929]
[1734980273476,3.78566,3310.0,3308.4,3.02259]
[1734980273709,3.78566,3310.0,3308.3,0.7929]
[1734980273710,3.02133,3309.8,3308.5,0.381549]
[1734980273922,0.378566,3309.9,3308.5,0.381549]
[1734980274096,0.7645,3310.0,3308.3,0.7929]
[1734980274278,0.7645,3310.0,3308.5,3.02248]
[1734980274682,0.7645,3310.0,3308.6,3.02236]
[1734980275309,0.7645,3310.0,3308.8,3.02223]
[1734980275516,0.7645,3310.0,3308.8,3.0]
[1734980275824,0.7645,3310.0,3308.8,3.60223]
[1734980276333,0.7645,3310.0,3309.0,3.02206]
[1734980276621,0.7645,3310.0,3308.9,3.02213]
[1734980277130,0.7645,3310.0,3309.0,3.0]
[1734980277621,0.7645,3310.0,3308.8,0.60223]
[1734980277819,0.7645,3310.0,3309.1,3.02193]
[1734980278015,0.7645,3310.0,3309.2,3.302193]
[1734980278317,0.7645,3310.0,3308.8,0.60223]
[1734980278524,0.7645,3310.0,3308.8,3.0]
[1734980278816,0.7645,3310.0,3309.0,3.02198]
[1734980279017,0.7645,3310.0,3309.1,3.0]
[1734980280013,0.7645,3310.0,3309.1,6.02194]
[1734980280214,0.7645,3310.0,3308.7,3.02228]
[1734980280215,0.7645,3310.0,3309.2,3.02187]
[1734980280517,0.7645,3310.0,3308.2,3.0]
[1734980280820,3.02129,3309.9,3308.5,3.0]
[1734980281063,3.77285,3309.8,3308.3,3.02266]
[1734980281267,0.7515,3309.6,3307.9,3.02306]
[1734980281417,0.7645,3309.5,3307.9,3.023]
[1734980281744,0.7645,3309.3,3308.0,0.3023]
[1734980282064,0.7645,3309.0,3307.1,0.7998]
[1734980282243,3.02262,3308.4,3306.9,1.26661311]
[1734980282448,0.7645,3308.2,3306.9,1.26661311]
[1734980282609,3.02335,3307.6,3306.9,1.26661311]
[1734980282817,6.57295,3308.1,3306.9,1.26661311]
[1734980282818,0.7645,3307.5,3306.9,1.26661311]
[1734980283060,0.7645,3307.5,3306.0,3.02478]
[1734980283316,0.7645,3307.5,3306.1,0.302478]
[1734980283529,0.7645,3307.5,3305.7,1.26661311]
[1734980283774,3.78796,3307.5,3305.9,3.02483]
[1734980283913,0.7645,3307.5,3305.7,1.26661311]
[1734980284123,0.7645,3307.5,3306.1,3.02469]
[1734980284321,0.7645,3307.5,3306.5,3.02434]
[1734980284533,6.02289,3308.1,3306.6,0.302434]
[1734980284534,2.9969,3308.1,3306.6,0.302434]
[1734980284728,2.9969,3308.1,3305.9,3.02487]
[1734980284932,2.9969,3308.1,3306.3,3.02446]
[1734980285129,2.9969,3308.1,3306.4,3.0]
[1734980285547,3.02306,3307.9,3306.5,3.0]
[1734980285948,2.9969,3308.1,3306.5,6.02431]
[1734980286273,3.4699675,3308.7,3306.6,3.602431]
[1734980286440,4.25688067,3309.2,3306.6,3.602431]
[1734980286441,3.02209,3309.0,3307.4,3.02348]
[1734980288166,0.55,3308.9,3307.1,3.0]
[1734980288373,0.55,3309.1,3307.7,3.02318]
[1734980289054,0.55,3309.1,3307.3,6.81796]
[1734980289055,0.678601,3309.4,3307.4,3.02352]
[1734980289265,5.4699675,3309.7,3307.5,0.681792]
[1734980289440,3.4699675,3308.7,3306.5,0.8143]
[1734980289772,3.4699675,3308.7,3306.7,3.0]
[1734980289925,3.02235,3308.7,3306.5,3.8143]
[1734980290125,3.02235,3308.7,3307.1,6.02378]
[1734980290352,0.55,3309.1,3306.7,3.02415]
[1734980290556,3.02196,3309.2,3307.6,3.02333]
[1734980290763,3.02196,3309.2,3307.6,3.325663]
[1734980290764,0.302196,3309.1,3307.6,3.325663]
[1734980290979,0.302196,3309.1,3307.6,0.302333]
[1734980291164,3.02151,3309.6,3307.6,0.302333]
[1734980291352,3.02187,3309.3,3307.8,3.0]
[1734980291518,3.02151,3309.6,3307.8,3.0]
[1734980291721,3.02188,3309.2,3307.8,3.0]
[1734980291921,0.302188,3309.1,3307.8,3.6325573]
[1734980292179,0.302188,3309.1,3307.7,3.02324]
[1734980292319,3.02253,3308.5,3307.1,3.0]
[1734980292822,3.0223,3308.8,3307.2,3.02361]
[1734980293069,0.55,3308.7,3307.2,3.02364]
[1734980293382,0.55,3308.7,3306.5,0.776]
[1734980293671,2.0,3309.0,3306.5,0.776]
[1734980293672,0.55,3308.3,3306.6,3.02425]
[1734980293967,0.55,3308.3,3306.8,3.02402]
[1734980293968,0.357266,3308.2,3306.8,3.02402]
[1734980294184,0.357266,3308.2,3307.0,3.02388]
[1734980294357,0.55,3308.5,3307.0,3.02388]
[1734980294941,0.55,3308.6,3307.2,3.02368]
[1734980295476,3.57246,3308.6,3306.9,3.02388]
[1734980295676,3.57246,3308.6,3307.0,3.02386]
[1734980296443,0.55,3308.6,3306.7,3.380025]
[1734980296689,0.357233,3308.5,3307.2,3.02368]
[1734980297047,0.357233,3308.5,3307.5,3.02342]
[1734980297253,0.302188,3309.1,3307.7,3.02323]
[1734980297563,3.324158,3309.1,3307.4,3.8274]
[1734980297728,0.302188,3309.1,3307.4,3.8274]
[1734980297933,3.02151,3309.6,3307.4,3.8274]
[1734980298133,3.02187,3309.3,3307.6,3.02325]
[1734980298372,3.022,3309.1,3307.7,3.0]
[1734980298579,1.23494067,3310.0,3307.8,0.03023042]
[1734980298781,1.23494067,3310.0,3309.1,3.02194]
[1734980298988,0.30884261,3310.0,3309.3,3.0]
[1734980299185,1.23494067,3310.5,3309.1,3.0]
[1734980299684,1.23494067,3310.5,3309.1,6.02196]
[1734980300057,1.23494067,3310.5,3308.7,3.0]
[1734980300254,4.25569067,3310.5,3309.1,3.0]
[1734980300469,4.25569067,3310.5,3309.2,3.0]
[1734980300470,0.42556907,3310.4,3309.2,3.0]
[1734980301193,0.42556907,3310.4,3309.1,3.0]
[1734980301334,0.42556907,3310.4,3309.2,3.0]
[1734980301538,0.55,3310.6,3309.2,3.0]
[1734980301935,0.55,3310.6,3308.8,3.0]
[1734980302170,0.55,3310.8,3309.4,3.02164]
[1734980302791,0.55,3311.0,3309.5,3.0]
[1734980302943,0.55,3310.8,3309.5,3.02158]
[1734980303142,0.357034,3310.7,3309.6,3.0]
[1734980303339,4.07013805,3311.4,3309.9,3.02123]
[1734980303340,0.43145,3311.4,3309.9,3.02123]
[1734980303580,0.28398531,3311.6,3309.7,0.03021543]
[1734980303779,0.28398531,3311.6,3309.8,3.0]
[1734980303983,3.01988,3311.4,3309.9,3.02121]
[1734980304184,3.01988,3311.4,3310.0,3.0]
[1734980304390,3.02003,3311.3,3309.7,3.0]
[1734980304593,0.302003,3311.2,3309.8,3.0]
[1734980304742,0.302003,3311.2,3310.0,3.0]
[1734980304946,0.55,3311.4,3310.0,3.0]
[1734980305679,3.01987,3311.4,3310.0,6.02112]
[1734980305882,3.01999,3311.3,3309.4,3.8252]
[1734980306084,3.01999,3311.3,3309.8,3.0]
[1734980306283,0.301999,3311.2,3309.9,3.0]
[1734980306485,0.301999,3311.2,3309.9,6.02122]
[1734980306687,0.301999,3311.2,3309.9,3.0]
[1734980306843,0.301999,3311.2,3310.0,3.0]
[1734980307697,0.55,3310.9,3309.5,3.02158]
[1734980307901,0.55,3310.7,3309.0,0.7976]
[1734980308044,0.55,3310.7,3308.5,3.02251]
[1734980308244,3.02118,3310.0,3308.5,3.02251]
[1734980308476,3.02118,3310.0,3308.2,0.7862]
[1734980308477,3.57132,3309.9,3308.3,3.02265]
[1734980308785,0.55,3309.9,3308.3,3.02265]
[1734980308990,0.55,3310.3,3308.5,3.02247]
[1734980309195,3.02107,3310.1,3308.5,3.02247]
[1734980309370,0.55,3310.0,3308.5,3.02247]
[1734980310059,0.55,3310.0,3308.6,3.0]
[1734980310264,0.357107,3309.9,3308.6,3.0]
[1734980310481,0.357107,3309.9,3307.8,0.8258]
[1734980310642,0.55,3310.0,3308.6,3.0224]
[1734980310844,0.55,3310.0,3308.7,3.0]
[1734980311246,3.02041,3310.8,3309.3,3.02177]
[1734980311469,3.0,3310.8,3309.0,3.02199]
[1734980311692,3.02071,3310.5,3309.1,3.0]
[1734980311890,3.02071,3310.5,3308.2,4.34839]
[1734980311891,0.72553207,3310.7,3308.9,3.0]
[1734980312191,3.02061,3310.6,3309.0,3.02203]
[1734980312560,0.55,3310.5,3309.1,3.0]
[1734980314606,0.55,3309.9,3308.5,3.02244]
[1734980314892,3.57124,3309.9,3308.5,3.0]
[1734980315101,0.55,3310.0,3308.7,3.0]
[1734980315252,0.357107,3309.9,3308.7,6.02224]
[1734980315455,1.78494067,3310.5,3308.7,6.02224]
[1734980315678,0.55,3310.1,3308.4,3.0]
[1734980315956,0.55,3310.4,3309.2,3.02184]
[1734980316184,0.55,3310.4,3308.2,0.7756]
[1734980316386,0.55,3310.2,3308.9,3.0]
[1734980316560,0.357088,3310.1,3308.9,3.0]
[1734980317693,0.55,3310.4,3309.1,3.0]
[1734980318000,0.55,3310.4,3308.7,3.0]
[1734980318152,0.55,3310.4,3309.0,3.02197]
[1734980318362,3.02087,3310.3,3309.1,3.0]
[1734980319190,1.78494067,3310.6,3308.5,3.0]
[1734980319191,3.10669748,3310.5,3308.5,3.0]
[1734980319498,0.55,3310.2,3308.9,3.0]
[1734980319853,3.02106,3310.1,3308.9,3.0]
[1734980321094,3.02106,3310.1,3308.4,3.02257]
[1734980321095,0.55,3310.2,3308.5,3.0]
[1734980321406,3.57098,3310.2,3309.0,3.0]
[1734980321570,3.57098,3310.2,3308.6,3.02239]
[1734980321571,3.02122,3310.0,3308.6,3.02239]
[1734980321971,3.02122,3310.0,3308.7,3.0]
[1734980323487,0.48059207,3310.1,3308.3,3.0]
[1734980323814,3.50166207,3310.1,3308.8,3.0]
[1734980324163,3.50166207,3310.1,3308.8,6.02222]
[1734980324385,0.52866027,3310.0,3308.8,6.02222]
[1734980324845,3.0215,3309.7,3308.3,3.02269]
[1734980325112,3.0215,3309.7,3308.4,3.0]
[1734980325470,3.02135,3309.8,3308.4,3.02259]
[1734980325809,0.55,3309.7,3308.4,3.02259]
[1734980326014,3.02135,3309.8,3308.4,3.02259]
[1734980326015,0.357135,3309.6,3308.5,3.0]
[1734980326881,3.10669748,3309.4,3307.4,0.7827]
[1734980327098,3.10669748,3309.0,3307.1,3.02371]
[1734980327266,0.55,3308.9,3307.0,3.8065]
[1734980327467,3.02267,3308.4,3307.0,3.46849215]
[1734980327983,0.55,3308.5,3307.2,3.0237]
[1734980328502,0.39728401,3308.8,3307.0,0.44469215]
[1734980328820,0.55,3309.3,3307.5,3.02335]
[1734980329032,3.02169,3309.5,3307.3,0.8239]
[1734980329033,0.55,3309.5,3307.3,0.8239]
[1734980329464,3.0,3309.7,3307.4,0.03022722]
[1734980329666,1.23494067,3308.8,3308.2,0.8239]
[1734980330507,1.23494067,3308.8,3308.5,3.02248]
[1734980330921,3.378655,3309.6,3308.2,0.8239]
[1734980331160,3.02169,3309.4,3308.2,3.0]
[1734980331619,3.42328634,3309.5,3308.2,3.0]
[1734980331974,3.57171,3309.4,3308.2,3.0]
[1734980332289,0.40166634,3309.5,3308.2,3.02277]
[1734980332489,4.61358567,3309.6,3308.4,3.02252]
[1734980332490,1.23494067,3309.6,3308.4,3.02252]
[1734980332720,1.23494067,3309.6,3308.2,0.302277]
[1734980333277,1.23494067,3309.5,3308.2,0.302277]
[1734980333596,4.23494067,3309.5,3307.8,0.8332]
[1734980333778,4.23494067,3309.5,3307.8,3.85631]
[1734980333978,4.23494067,3309.5,3308.1,3.0228]
[1734980334422,3.02196,3309.1,3307.4,0.824]
[1734980334717,3.02196,3309.1,3307.7,3.02319]
[1734980334718,3.02201,3309.1,3307.7,3.02319]
[1734980335017,0.357201,3309.0,3308.0,3.02293]
[1734980335217,3.02178,3309.3,3308.0,3.02293]
[1734980335389,3.55,3309.3,3307.8,3.0]
[1734980335597,3.10669748,3308.9,3306.7,0.8194]
[1734980335781,3.02302,3308.0,3306.6,3.02425]
[1734980336118,0.302302,3307.9,3306.4,0.8194]
[1734980336930,0.302302,3307.9,3306.6,3.02418]
[1734980337502,0.302302,3307.9,3306.8,3.02398]
[1734980337843,1.23494067,3308.2,3307.1,3.02378]
[1734980338141,1.23494067,3308.2,3306.5,6.10669748]
[1734980338438,1.23494067,3308.3,3307.3,3.02353]
[1734980339439,1.23494067,3308.3,3307.5,3.0234]
[1734980339757,1.23494067,3308.3,3306.7,3.02416]
[1734980339899,1.23494067,3308.3,3307.8,3.02311]
[1734980340103,1.23494067,3308.3,3307.4,3.02349]
[1734980340104,1.23494067,3308.6,3307.6,3.02334]
[1734980340306,1.23494067,3308.6,3307.5,0.8179]
[1734980340810,1.23494067,3308.6,3307.6,3.02333]
[1734980341141,1.23494067,3308.6,3307.6,3.407453]
[1734980341549,1.85348548,3308.8,3306.8,1.187016]
[1734980341550,0.55,3308.8,3306.8,1.187016]
[1734980341713,3.0,3308.4,3306.8,1.187016]
[1734980341912,0.55,3308.8,3307.1,3.02379]
[1734980341913,3.55,3308.8,3307.1,3.02379]
[1734980342129,3.0,3308.8,3306.8,1.187016]
[1734980342336,1.23494067,3308.9,3307.1,3.0]
[1734980342543,1.23494067,3308.7,3307.9,3.02302]
[1734980342899,1.23494067,3308.7,3307.4,3.02344]
[1734980343104,3.10669748,3308.3,3306.8,1.150316]
[1734980343326,3.10669748,3308.3,3306.8,0.7929]
[1734980343674,3.10669748,3308.3,3306.8,3.81694]
[1734980343675,3.0,3308.1,3306.8,3.81694]
[1734980343947,3.02241,3308.7,3307.1,3.02377]
[1734980343948,3.0,3308.5,3307.1,3.02377]
[1734980344254,6.02253,3308.5,3307.1,3.02379]
[1734980344623,1.23494067,3308.4,3307.1,3.02379]
[1734980344971,1.23494067,3308.4,3306.8,0.7929]
[1734980345150,1.23494067,3308.4,3307.2,3.02362]
[1734980345356,1.23494067,3308.4,3306.9,3.55]
[1734980345646,1.23494067,3308.5,3307.6,3.0233]
[1734980345953,1.23494067,3308.5,3307.0,3.02388]
[1734980346151,1.23494067,3308.5,3307.9,3.02306]
[1734980346449,1.23494067,3308.8,3308.1,3.02284]
[1734980346649,1.23494067,3308.8,3307.8,3.02315]
[1734980346999,1.23494067,3308.8,3307.6,0.7929]
[1734980347331,1.23494067,3308.8,3307.6,3.7929]
[1734980347536,1.23494067,3308.8,3308.3,3.02268]
[1734980347850,4.23494067,3309.4,3308.3,3.02268]
[1734980348146,1.23494067,3309.4,3308.3,3.02268]
[1734980348344,1.23494067,3309.4,3308.3,3.02265]
[1734980348846,1.23494067,3309.4,3307.7,3.40253]
[1734980349018,0.55,3309.2,3307.6,0.7929]
[1734980349344,0.55,3309.0,3307.2,0.7768]
[1734980349518,3.0,3308.8,3307.4,3.02352]
[1734980349719,4.23494067,3309.4,3307.2,0.7768]
[1734980350244,3.0,3309.2,3307.8,3.02315]
[1734980350446,1.23494067,3308.8,3307.8,3.02315]
[1734980350662,4.23494067,3308.8,3307.2,3.80044]
[1734980351243,4.23494067,3308.8,3307.4,3.02347]
[1734980351547,3.0,3308.1,3306.8,3.02405]
[1734980351705,3.0,3308.2,3306.5,0.7768]
[1734980351908,0.3,3308.1,3307.0,3.02385]
[1734980352219,3.0,3308.6,3307.2,3.02361]
[1734980352636,3.0,3308.6,3306.7,3.02416]
[1734980352956,4.23494067,3308.2,3307.1,3.0237]
[1734980353122,4.23494067,3308.2,3306.8,3.02406]
[1734980353447,4.23494067,3308.2,3307.0,3.02386]
[1734980353618,0.60884262,3308.1,3307.0,3.02386]
[1734980354151,0.60884262,3308.1,3306.7,3.02407]
[1734980354318,3.0,3308.0,3306.7,3.02407]
[1734980355163,0.60884262,3308.1,3306.9,3.02396]
[1734980355457,1.23494067,3307.9,3306.9,3.02396]
[1734980355663,0.55,3307.8,3306.2,3.0246]
[1734980355822,1.60466755,3307.9,3306.0,3.0248]
[1734980356007,1.60466755,3307.9,3306.5,3.02428]
[1734980356209,1.60466755,3307.9,3306.6,3.02425]
[1734980356449,1.60466755,3307.9,3306.9,3.02394]
[1734980356757,1.60466755,3307.9,3306.0,3.0248]
[1734980357049,1.23494067,3307.9,3306.7,0.7956]
[1734980357350,1.23494067,3307.7,3306.9,3.02395]
[1734980357922,4.23494067,3307.7,3306.1,0.7615]
[1734980358326,3.0,3307.7,3306.4,3.02438]
[1734980358654,3.0,3307.7,3306.1,0.7615]
[1734980358655,0.60884262,3307.6,3306.5,3.02432]
[1734980358812,3.0,3307.8,3306.5,3.02432]
[1734980359758,1.23494067,3307.6,3306.5,3.02432]
[1734980360426,1.23494067,3307.6,3306.1,3.78616]
[1734980360427,1.23494067,3307.6,3306.6,3.02421]
[1734980360954,1.23494067,3307.7,3306.6,3.02421]
[1734980361277,1.23494067,3307.7,3306.1,0.7615]
[1734980361459,1.23494067,3307.7,3306.2,3.68693553]
[1734980361757,1.23494067,3307.7,3306.5,3.02431]
[1734980362114,1.23494067,3307.7,3306.3,3.0245]
[1734980362464,1.23494067,3307.8,3305.9,3.8318]
[1734980362613,1.23494067,3307.8,3306.8,3.02399]
[1734980362813,1.23494067,3307.8,3307.1,3.02371]
[1734980363754,1.23494067,3307.9,3307.1,3.02371]
[1734980364109,1.23494067,3307.9,3306.4,3.0]
[1734980364310,1.84378329,3307.9,3306.7,3.02415]
[1734980364551,1.84378329,3307.9,3306.6,3.02425]
[1734980364761,1.84378329,3307.9,3306.6,3.02416]
[1734980365254,0.60884262,3307.9,3306.2,0.799]
[1734980365462,1.23494067,3308.1,3306.2,6.93593342]
[1734980365613,1.23494067,3308.1,3306.2,6.90569748]
[1734980365953,1.23494067,3308.1,3307.2,3.02368]
[1734980366162,1.23494067,3307.9,3306.2,6.90569748]
[1734980366360,1.23494067,3307.9,3307.4,3.02352]
[1734980367070,1.23494067,3307.9,3307.2,3.02361]
[1734980367364,0.30884261,3307.9,3306.5,3.0243]
[1734980367668,3.0,3308.0,3306.8,3.02399]
[1734980368239,4.34163815,3308.3,3306.5,3.02429]
[1734980368466,7.25809067,3307.9,3306.3,0.7766]
[1734980368673,7.34163815,3307.9,3305.9,0.7768]
[1734980368877,3.0,3307.0,3305.9,0.03962885]
[1734980369087,3.10669748,3307.5,3306.3,3.02451]
[1734980369245,0.55,3307.8,3305.5,0.7768]
[1734980369426,3.0,3307.8,3306.7,3.02413]
[1734980369771,4.34163815,3307.9,3307.0,3.0238]
[1734980369772,4.23494067,3307.9,3307.0,3.0238]
[1734980369979,1.85348548,3307.1,3307.0,3.0238]
[1734980370126,1.85348548,3307.1,3307.0,3.32618]
[1734980370570,1.85348548,3307.1,3307.0,4.11378]
[1734980370929,1.23460756,3308.1,3307.4,3.02349]
[1734980371130,1.23460756,3308.1,3307.0,1.08998]
[1734980371334,1.23460756,3308.1,3307.4,3.02344]
[1734980371782,1.23460756,3308.1,3306.6,0.7876]
[1734980371981,1.23460756,3308.1,3307.1,3.02371]
[1734980372192,1.23460756,3308.1,3306.7,3.02416]
[1734980372193,1.23460756,3308.1,3306.4,3.02438]
[1734980372384,1.23460756,3308.1,3306.5,3.02434]
[1734980372587,0.3088093,3308.0,3306.9,3.02397]
[1734980373176,0.3088093,3308.0,3307.0,3.02385]
[1734980373685,1.23460756,3308.4,3307.2,0.8097]
[1734980373891,1.23460756,3307.9,3307.5,3.02334]
[1734980374183,1.23460756,3307.9,3307.8,3.02315]
[1734980374586,7.56e-06,3307.9,3307.8,3.83285]
[1734980374785,3.04e-06,3308.0,3307.9,3.57306]
[1734980374958,2.49822398,3308.4,3308.3,3.0227]
[1734980375211,1.23579201,3308.9,3308.8,3.02224]
[1734980375593,1.23579201,3308.9,3308.5,3.02245]
[1734980375791,1.23579201,3308.9,3308.1,0.7503]
[1734980375958,1.23579201,3308.9,3308.1,3.77316]
[1734980376158,1.23579201,3308.9,3308.3,3.02266]
[1734980376374,3.24872158,3310.0,3308.3,3.02266]
[1734980376694,3.02162,3309.5,3308.0,3.02293]
[1734980376991,3.0,3309.3,3307.8,3.02313]
[1734980377194,0.55,3309.2,3307.4,2.08761311]
[1734980377504,3.0,3308.9,3307.6,3.02332]
[1734980378042,3.0,3308.9,3307.7,3.02323]
[1734980378242,3.0,3309.0,3307.7,3.02323]
[1734980378861,3.37699,3309.1,3307.6,3.02334]
[1734980378862,0.355,3309.1,3307.6,3.02334]
[1734980379044,3.0,3309.3,3308.1,3.02282]
[1734980379790,3.0,3309.3,3308.2,3.0227]
[1734980379995,3.0,3309.3,3307.7,0.32321013]
[1734980380164,3.0,3309.4,3307.5,0.20876131]
[1734980380361,3.0,3309.6,3307.7,3.55]
[1734980380549,3.0,3309.6,3308.3,3.02265]
[1734980380869,3.0,3309.7,3307.9,0.7838]
[1734980381190,3.65952836,3309.9,3308.0,6.57297]
[1734980381498,3.24872158,3310.0,3308.2,0.8178]
[1734980381669,3.24872158,3310.0,3308.7,3.0223]
[1734980381996,3.02152,3309.6,3308.3,3.02262]
[1734980382197,3.02152,3309.6,3308.1,0.73869928]
[1734980382198,2.33909748,3309.8,3308.1,3.02286]
[1734980382351,3.02157,3309.6,3308.1,3.02286]
[1734980382553,2.33909748,3309.8,3308.3,3.02263]